{"text_format":"3","workbook":"xlsx","n_sheets":1,"sheets":["Verslo steigimo išlaidos"],"not_rendered":{"defined_names":1},"read":"whole","date_system":"1900"}

{"sheet":"Verslo steigimo išlaidos","index":0,"n_rows":120,"n_cols":4,"rows_kept":120,"merged":[[1,1,1,3],[10,1,10,3],[17,1,17,3],[25,1,25,3],[34,1,34,3],[42,1,42,3],[50,1,50,3],[55,1,55,3],[57,1,57,3],[59,1,59,3],[60,1,60,3],[69,1,69,3],[76,1,76,3],[81,1,81,3],[82,1,82,3],[90,1,90,3],[102,1,102,3],[110,1,110,3],[115,1,115,3]]}
["VERSLO STEIGIMO IŠLAIDOS",null,null,"UAB „ĮMONĖS PAVADINIMAS“"]
[null,"PERSKAITYKITE PRIEŠ NAUDODAMI ŠĮ DARBALAPĮ\nBeveik visi, kurie kada nors yra įsteigę verslą, nepakankamai įvertino su tuo susijusias išlaidas, o tada rizikavo vykdyti veiklą neturėdami pakankamų kapitalo rezervų. Norint išvengti šių klaidų, svarbiausia įtvirtinti griežtą požiūrį į tyrimus ir planavimą. Mūsų verslo steigimo išlaidos šablonas padės atlikti šį procesą.\n\nPIRMIAUSIA APSKAIČIUOKITE IŠLAIDAS\nKiek kainuos verslo steigimas? Norint tiksliai apskaičiuoti, būtinas dėmesys detalėms. Sudarykite sąrašą kiekvienos išlaidų kategorijos prekių ir paslaugų, kurias jums reikės įsigyti. Tai bus ir materialusis turtas (pvz., įranga, inventorius), ir paslaugos (pvz., pertvarkymas, draudimas). Tada nuspręskite, kur galite įsigyti šias prekes ar paslaugas. Pasidomėkite daugiau nei vienu pardavėju, t. y. palyginkite teikiamas prekes ar paslaugas. Nežiūrėkite tik į kainą; taip pat svarbu mokėjimo sąlygos, pristatymas, patikimumas ir aptarnavimas. "]
[]
[null,"VERSLO STEIGIMO IŠLAIDOS"]
[null,"PASTATAI / NEKILNOJAMASIS TURTAS"," ","SUMA"]
[null,"Įsigijimas",null,{"v":0,"d":"0.00 EUR"}]
[null,"Statyba",null,{"v":0,"d":"0.00 EUR"}]
[null,"Pertvarkymas",null,{"v":0,"d":"0.00 EUR"}]
[null,"Kita",null,{"v":0,"d":"0.00 EUR"}]
[null,"Suma",null,{"$f":"SUBTOTAL(109,NekilnojamasisTurtas[SUMA])","v":{"v":0,"d":"0.00 EUR"}}]
[]
[null,"IŠNUOMOTO TURTO PAGERINIMAS"," ","SUMA"]
[null,"1 elementas",null,{"v":0,"d":"0.00 EUR"}]
[null,"2 elementas",null,{"v":0,"d":"0.00 EUR"}]
[null,"3 elementas",null,{"v":0,"d":"0.00 EUR"}]
[null,"4 elementas",null,{"v":0,"d":"0.00 EUR"}]
[null,"Suma",null,{"$f":"SUBTOTAL(109,Pagerinimai[SUMA])","v":{"v":0,"d":"0.00 EUR"}}]
[]
[null,"KAPITALINĖS ĮRANGOS SĄRAŠAS"," ","SUMA"]
[null,"Baldai",null,{"v":0,"d":"0.00 EUR"}]
[null,"Įranga",null,{"v":0,"d":"0.00 EUR"}]
[null,"Konstrukcijos",null,{"v":0,"d":"0.00 EUR"}]
[null,"Aparatūra",null,{"v":0,"d":"0.00 EUR"}]
[null,"Kita",null,{"v":0,"d":"0.00 EUR"}]
[null,"Suma",null,{"$f":"SUBTOTAL(109,KapitalinėĮranga[SUMA])","v":{"v":0,"d":"0.00 EUR"}}]
[]
[null,"VIETOS IR ADMINISTRAVIMO IŠLAIDOS"," ","SUMA"]
[null,"Nuoma",null,{"v":0,"d":"0.00 EUR"}]
[null,"Įmokos už komunalines paslaugas",null,{"v":0,"d":"0.00 EUR"}]
[null,"Teisinės ir apskaitos išlaidos",null,{"v":0,"d":"0.00 EUR"}]
[null,"Iš anksto apmokėtas draudimas",null,{"v":0,"d":"0.00 EUR"}]
[null,"Atlyginimai iki veiklos pradžios ",null,{"v":0,"d":"0.00 EUR"}]
[null,"Kita",null,{"v":0,"d":"0.00 EUR"}]
[null,"Suma",null,{"$f":"SUBTOTAL(109,AdministravimoIšlaidos[SUMA])","v":{"v":0,"d":"0.00 EUR"}}]
[]
[null,"INVENTORIUS PRADEDANT VEIKLĄ"," ","SUMA"]
[null,"1 kategorija",null,{"v":0,"d":"0.00 EUR"}]
[null,"2 kategorija",null,{"v":0,"d":"0.00 EUR"}]
[null,"3 kategorija",null,{"v":0,"d":"0.00 EUR"}]
[null,"4 kategorija",null,{"v":0,"d":"0.00 EUR"}]
[null,"5 kategorija",null,{"v":0,"d":"0.00 EUR"}]
[null,"Suma",null,{"$f":"SUBTOTAL(109,InventoriusPradedantVeiklą[SUMA])","v":{"v":0,"d":"0.00 EUR"}}]
[]
[null,"REKLAMOS IŠLAIDOS"," ","SUMA"]
[null,"Reklama",null,{"v":0,"d":"0.00 EUR"}]
[null,"Ženklai",null,{"v":0,"d":"0.00 EUR"}]
[null,"Spausdinimas",null,{"v":0,"d":"0.00 EUR"}]
[null,"Kelionės / pramogos",null,{"v":0,"d":"0.00 EUR"}]
[null,"Kita / papildomos kategorijos",null,{"v":0,"d":"0.00 EUR"}]
[null,"Suma",null,{"$f":"SUBTOTAL(109,ReklamosIšlaidos[SUMA])","v":{"v":0,"d":"0.00 EUR"}}]
[]
[null,"KITOS IŠLAIDOS"," ","SUMA"]
[null,"Kitos išlaidos 1",null,{"v":0,"d":"0.00 EUR"}]
[null,"Kitos išlaidos 2",null,{"v":0,"d":"0.00 EUR"}]
[null,"Suma",null,{"$f":"SUBTOTAL(109,KitosIšlaidos[SUMA])","v":{"v":0,"d":"0.00 EUR"}}]
[]
[null,"Nenumatytų išlaidų rezervas",null,{"v":0,"d":"0.00 EUR"}]
[]
[null,"Apyvartinis kapitalas ",null,{"v":0,"d":"0.00 EUR"}]
[]
[null,"ĮTRAUKITE REZERVĄ NENUMATYTOMS IŠLAIDOMS\nBūtinai paaiškinkite, kaip nusprendėte, kokią sumą atidėti į rezervą. \n\nNUSTATYKITE PINIGŲ SRAUTĄ\nNegalite pradėti veiklos neturėdami pinigų banko sąskaitoje. Jums reikia pinigų išlaidoms padengti, kol verslas įsibėgės. Galiausiai turėtumėte sudaryti 12 mėnesių pinigų srauto planą. Tada ir apskaičiuosite reikiamą apytikslį apyvartinio kapitalo dydį. Kol kas palikite šią eilutę tuščią arba įveskite apytikslę reikšmę. Sudarę pinigų srauto planą, galite grįžti ir įvesti tiksliai apskaičiuotą sumą.\n\nĮVESKITE KAPITALO ŠALTINIUS\nKai jau nustatėte, kiek apytiksliai kapitalo reikės norint pradėti veiklą, turėtumėte nukreipti dėmesį į viršutinę šio darbalapio dalį. Įveskite sumas, kurias įnešite patys, kiek investuos partneriai ar investuotojai ir kokia suma bus gauta skolinantis."]
[]
[null,"KAPITALO ŠALTINIAI"]
[null,"SAVININKŲ INVESTICIJOS (VARDAS, PAVARDĖ IR NUOSAVYBĖS PROCENTAS)"," ","SUMA"]
[null,"Jūsų vardas ir nuosavybės procentas",null,{"v":0,"d":"0.00 EUR"}]
[null,"Kitas investuotojas",null,{"v":0,"d":"0.00 EUR"}]
[null,"Kitas investuotojas",null,{"v":0,"d":"0.00 EUR"}]
[null,"Kitas investuotojas",null,{"v":0,"d":"0.00 EUR"}]
[null,"Suma",null,{"$f":"SUBTOTAL(109,SavininkųInvesticijos[SUMA])","v":{"v":0,"d":"0.00 EUR"}}]
[]
[null,"BANKO PASKOLOS"," ","SUMA"]
[null,"1 bankas",null,{"v":0,"d":"0.00 EUR"}]
[null,"2 bankas",null,{"v":0,"d":"0.00 EUR"}]
[null,"3 bankas",null,{"v":0,"d":"0.00 EUR"}]
[null,"4 bankas",null,{"v":0,"d":"0.00 EUR"}]
[null,"Suma",null,{"$f":"SUBTOTAL(109,BankoPaskolos[SUMA])","v":{"v":0,"d":"0.00 EUR"}}]
[]
[null,"KITOS PASKOLOS"," ","SUMA"]
[null,"1 šaltinis",null,{"v":0,"d":"0.00 EUR"}]
[null,"2 šaltinis",null,{"v":0,"d":"0.00 EUR"}]
[null,"Suma",null,{"$f":"SUBTOTAL(109,KitosPaskolos[SUMA])","v":{"v":0,"d":"0.00 EUR"}}]
[]
[null,"PATEIKITE TURTO ĮKEITIMO ĮRODYMUS\nJei šį planą naudosite prašydami banko paskolos, naudokite apačioje esančią skiltį, kurioje galite nurodyti, koks turtas bus naudojamas kaip įkeičiamas turtas, kad gautumėte paskolą ir apytiksliai nustatytumėte to turto vertę. Būkite pasiruošę pateikti norimo įkeisti turto vertės įrodymų."]
[]
[null,"SUVESTINĖ"]
[null,"KAPITALO ŠALTINIS"," ","BENDROSIOS SUMOS"]
[null,"Savininko investicijos ir kitos investicijos",null,{"$f":"SavininkųInvesticijos[[#Totals],[SUMA]]","v":{"v":0,"d":"0.00 EUR"}}]
[null,"Banko paskolos",null,{"$f":"BankoPaskolos[[#Totals],[SUMA]]","v":{"v":0,"d":"0.00 EUR"}}]
[null,"Kitos paskolos",null,{"$f":"KitosPaskolos[[#Totals],[SUMA]]","v":{"v":0,"d":"0.00 EUR"}}]
[null,"Suma",null,{"$f":"SUBTOTAL(109,KapitaloŠaltiniai[BENDROSIOS SUMOS])","v":{"v":0,"d":"0.00 EUR"}}]
[]
[null,"VERSLO STEIGIMO IŠLAIDOS"," ","BENDROSIOS SUMOS"]
[null,"Pastatai / nekilnojamasis turtas",null,{"$f":"NekilnojamasisTurtas[[#Totals],[SUMA]]","v":{"v":0,"d":"0.00 EUR"}}]
[null,"Išnuomoto turto pagerinimas",null,{"$f":"Pagerinimai[[#Totals],[SUMA]]","v":{"v":0,"d":"0.00 EUR"}}]
[null,"Kapitalinė įranga",null,{"$f":"KapitalinėĮranga[[#Totals],[SUMA]]","v":{"v":0,"d":"0.00 EUR"}}]
[null,"Vietos / administravimo išlaidos",null,{"$f":"AdministravimoIšlaidos[[#Totals],[SUMA]]","v":{"v":0,"d":"0.00 EUR"}}]
[null,"Inventorius pradedant veiklą",null,{"$f":"InventoriusPradedantVeiklą[[#Totals],[SUMA]]","v":{"v":0,"d":"0.00 EUR"}}]
[null,"Reklamos išlaidos",null,{"$f":"ReklamosIšlaidos[[#Totals],[SUMA]]","v":{"v":0,"d":"0.00 EUR"}}]
[null,"Kitos išlaidos",null,{"$f":"KitosIšlaidos[[#Totals],[SUMA]]","v":{"v":0,"d":"0.00 EUR"}}]
[null,"Nenumatytų išlaidų fondas",null,{"$f":"SUM('Verslo steigimo išlaidos'!$C$57)","v":{"v":0,"d":"0.00 EUR"}}]
[null,"Apyvartinis kapitalas",null,{"$f":"SUM('Verslo steigimo išlaidos'!$C$59)","v":{"v":0,"d":"0.00 EUR"}}]
[null,"Suma",null,{"$f":"SUBTOTAL(109,VersloSteigimoIšlaidos[BENDROSIOS SUMOS])","v":{"v":0,"d":"0.00 EUR"}}]
[]
[null,"UŽSTATO IR TURTO ĮKEITIMO INFORMACIJA, SKIRTA PASKOLOS PRAŠYMUI"]
[null,"TURTO ĮKEITIMAS IMANT PASKOLĄ","APRAŠAS","VERTĖ"]
[null,"Nekilnojamasis turtas",null,{"v":0,"d":"0.00 EUR"}]
[null,"Kitas įkeičiamas turtas",null,{"v":0,"d":"0.00 EUR"}]
[null,"Kitas įkeičiamas turtas",null,{"v":0,"d":"0.00 EUR"}]
[null,"Kitas įkeičiamas turtas",null,{"v":0,"d":"0.00 EUR"}]
[null,"Suma",null,{"$f":"SUBTOTAL(109,ĮkeičiamasTurtas[VERTĖ])","v":{"v":0,"d":"0.00 EUR"}}]
[]
[null,"SAVININKAI"," ","  "]
[null,"Čia įveskite savo vardą"]
[null,"Kitas savininkas"]
[null,"Kitas savininkas"]
[]
[null,"PASKOLOS LAIDUOTOJAI (NE SAVININKAI)"," ","  "]
[null,"1 paskolos laiduotojas"]
[null,"2 paskolos laiduotojas"]
[null,"3 paskolos laiduotojas"]